Cogmind - Beta 13 @@@ ROGUE MODE // 2024.04.02 @ 16:04:20 Player: Ham Result: Self-destructed Performance ------------- Evolutions (1) 500 Regions Visited (2) 400 Robots Destroyed (43) 215 Value Destroyed (720) 720 Prototype IDs (0) 0 Alien Tech Used (0) 0 Bonus (0) 0 TOTAL SCORE: 1835 Bonus ------- None Cogmind --------- Core Integrity 148/400 Matter 200/300 Energy 89/100 System Corruption 0% Temperature Cool (12) Movement Rolling (130) Ox2 Location -9/Materials Parts ------- > --- POWER (1) -------- (None) > --- PROPULSION (3) --- Compact Wheel > --- UTILITY (3) ------ High-capacity Storage Unit Structural Scanner Seismic Detector > --- WEAPON (2) ------- (None) > --- INVENTORY (20) --- Light Ion Engine Aluminum Leg Aluminum Leg Heat Sink Visual Processing Unit Sensor Array Sensor Array Improved Terrain Scanner Seismic Detector Targeting Computer Power Shielding Tractor Beam Light Cannon Plasma Cutter Peak State ------------ > --- POWER ------------ Ion Engine > --- PROPULSION ------- Wheel Compact Wheel > --- UTILITY ---------- High-capacity Storage Unit Structural Scanner Seismic Detector > --- WEAPON ----------- Mining Laser Plasma Cutter > --- INVENTORY -------- Light Ion Engine Aluminum Leg Aluminum Leg Heat Sink Visual Processing Unit Sensor Array Sensor Array Improved Terrain Scanner Seismic Detector Targeting Computer Power Shielding Tractor Beam Light Cannon Grenade Launcher [Rating: 10] Favorites ----------- Power Light Ion Engine Engine Light Ion Engine Propulsion Wheel Leg Aluminum Leg Wheel Wheel Utility Seismic Detector Device Seismic Detector Storage High-capacity Storage Unit Processor Signal Interpreter Weapon Light Cannon Energy Gun Small Laser Energy Cannon Beam Cannon Ballistic Gun Assault Rifle Ballistic Cannon Light Cannon Launcher Grenade Launcher Special Weapon Mining Laser Build | -11 -10 -9 ------- Run | Yrd Mat Mat Slots Evolved 2 | . . 2 Power . | . . . Propulsion 1 | . . 1 Utility 1 | . . 1 Weapon . | . . . Parts Attached 39 | 7 21 11 Power 7 | 1 4 2 Engine 7 | 1 4 2 Core . | . . . Reactor . | . . . Propulsion 11 | 2 5 4 Treads . | . . . Leg 4 | 2 . 2 Wheel 7 | . 5 2 Hover . | . . . Flight . | . . . Utility 7 | 2 3 2 Device 4 | 1 1 2 Storage 2 | 1 1 . Processor 1 | . 1 . Hackware . | . . . Protection . | . . . Artifact . | . . . Weapon 14 | 2 9 3 Energy Gun 2 | 2 . . Energy Cannon 2 | . 2 . Ballistic Gun 3 | . 3 . Ballistic Cannon 1 | . 1 . Launcher 2 | . 1 1 Special Weapon 4 | . 2 2 Impact Weapon . | . . . Slashing Weapon . | . . . Piercing Weapon . | . . . Special Melee Weapon . | . . . Unidentified Prototypes . | . . . Parts Lost 13 | . 3 10 Power 3 | . . 3 Propulsion 4 | . 1 3 Utility . | . . . Weapon 6 | . 2 4 Highest Loss Streak 5 | . 1 5 To Critical Strikes . | . . . Average Slot Usage (%) 88 | . 95 72 Engine 12 | . 13 7 Leg 4 | . 5 2 Wheel 17 | . 20 8 Device 12 | . 9 22 Storage 13 | . 14 11 Processor 2 | . 3 . Energy Gun 4 | . 6 . Energy Cannon 4 | . 6 . Ballistic Gun 5 | . 5 5 Ballistic Cannon 7 | . 6 10 Special Weapon 2 | . 1 4 Naked Turns . | . . . Heaviest Build 52 | 12 50 52 Greatest Support 26 | 20 26 26 Greatest Overweight (x) 17 | 1 13 17 Average Overweight (x) 1 | . 1 3 Largest Inventory Capacity 20 | 8 20 20 Average Capacity 15 | 7 15 20 Most Carried 16 | 6 16 15 Average Carried 9 | 3 9 11 Final Capacity 20 | 8 20 20 Final Carried 14 | 5 13 14 Class Distribution -------------------- 89% | Mutant 10% | Scavenger-Mutant Dominant Class ---------------- Mutant | -10/Materials Mutant | -9/Materials Resources | -11 -10 -9 ----------- Run | Yrd Mat Mat Matter Collected 887 | 260 383 244 Remotely . | . . . Salvage Created 1224 | 202 694 328 Parts 78 | 17 41 20 Haulers Intercepted . | . . . Recyclers Shooed 2 | . . 2 Parts Field Recycled . | . . . Retrieved Matter . | . . . Parts Self-Destructed . | . . . Prevented . | . . . Kills | -11 -10 -9 ------- Run | Yrd Mat Mat Combat Hostiles Destroyed 18 | . 14 4 Guns 10 | . 8 2 Cannons 6 | . 5 1 AOE 2 | . 1 1 Classes Destroyed 8 | 3 5 . Worker 5 | 2 2 1 Builder 4 | . 1 3 Tunneler 5 | 5 . . Recycler 5 | 1 2 2 Operator 2 | . 1 1 Watcher 4 | . 3 1 Swarmer 6 | . 6 . Grunt 12 | . 8 4 Best Kill Streak 6 | 6 3 2 Combat Bots Only 3 | . 3 2 Max Kills in Single Turn 2 | 1 2 2 Gunslinging . | . . . Exploded 1 | . 1 1 Melee . | . . . Uniques/NPCs Destroyed . | . . . Combat | -11 -10 -9 -------- Run | Yrd Mat Mat Hostile Shots Fired 162 | . 74 88 Missed 42 | . 18 24 Damage Taken 1501 | 10 589 902 Core 377 | 5 120 252 Absorbed by Shields . | . . . Core Remaining (%) 74 | 98 50 . Volleys Fired 134 | 18 69 47 Largest 2 | 2 2 2 Hottest 135 | 80 95 135 Shots Fired 235 | 35 126 74 Gun 142 | 35 85 22 Cannon 77 | . 35 42 Launcher 8 | . 6 2 Special 8 | . . 8 Kinetic 108 | . 44 64 Thermal 85 | 17 60 8 Explosive 8 | . 6 2 Electromagnetic 34 | 18 16 . Robot Hit Streak 8 | 5 6 8 Robot Miss Streak 6 | 2 6 6 Penetration Max . | . . . Secondary Targets 1 | . 1 . Max Gunslinging Chain 1 | . 1 . Shots Hit Robots 126 | 21 64 41 Core Hits 55 | 8 31 16 Critical Kills . | . . . Critical Parts Destroyed . | . . . Critical Strikes 2 | 1 . 1 Corrupt 1 | 1 . . Sever 1 | . . 1 Melee Attacks . | . . . Impact . | . . . Slashing . | . . . Piercing . | . . . Sneak Attacks . | . . . Combat Hostiles . | . . . Follow-up Attacks . | . . . Damage Inflicted 2294 | 288 1013 993 Guns 845 | 262 438 145 Cannons 736 | . 332 404 Explosions 594 | 26 243 325 Melee . | . . . Ramming . | . . . Kinetic 797 | . 248 549 Thermal 943 | 125 490 328 Explosive 325 | . 209 116 Electromagnetic 229 | 163 66 . Impact . | . . . Slashing . | . . . Piercing . | . . . Highest Corruption . | . . . Average Corruption . | . . . Corruption Purged . | . . . Corruption Blocked . | . . . Overload Shots . | . . . Overflow Damage 191 | . 11 180 Projectiles 2 | . . 2 Explosions 189 | . 11 178 Melee . | . . . Knockbacks 9 | . 1 8 Impact . | . . . Kinetic 8 | . 1 7 Secondary 1 | . . 1 Self-Inflicted Damage 113 | 10 . 103 Shots 3 | 1 . 2 Rammed . | . . . Targets Rammed . | . . . Kicked . | . . . Crushed . | . . . Highest Temperature 172 | 72 172 40 Average Temperature 48 | 24 64 12 Received Heat Transfer 633 | . 252 381 Siege Activations . | . . . Robots Corrupted . | . . . Combat Hostiles . | . . . Parts Fried 1 | 1 . . Impact Corruptions . | . . . Robots Melted . | . . . Combat Hostiles . | . . . Parts Melted 2 | . 2 . Heat Transferred 1691 | 275 1042 374 Parts Sabotaged . | . . . Parts Stolen . | . . . Parts Stripped . | . . . Power Chain Reactions 2 | 1 1 . Alert | -11 -10 -9 ------- Run | Yrd Mat Mat Peak Influence 320 | 40 320 184 Initial 29 | . 26 29 Average 111 | 15 137 83 Maximum Alert Level 1 | . 1 . Low Security (%) 80 | 100 69 100 Level 1 19 | . 30 . Level 2 . | . . . Level 3 . | . . . Level 4 . | . . . Level 5 . | . . . High Security . | . . . Max Security . | . . . Squads Dispatched 7 | . 5 2 Investigation 2 | . 2 . Extermination . | . . . Reinforcement 5 | . 3 2 Assault . | . . . Garrison . | . . . Intercept . | . . . Searches Triggered . | . . . Construction Impeded . | . . . Haulers Reinforced . | . . . Active Scanning Responses . | . . . Cargo Convoy Interrupts . | . . . Stealth | -11 -10 -9 --------- Run | Yrd Mat Mat Distress Signals 3 | . 2 1 Communications Jammed . | . . . Distress Signals . | . . . Times Spotted 42 | . 25 17 Peak Tracking Total 6 | . 5 6 Tactical Retreats 1 | . . 1 Traps | -11 -10 -9 ------- Run | Yrd Mat Mat Traps Triggered 5 | . 5 . Indirectly . | . . . Trap Hack Attempts . | . . . Triggered . | . . . Disarmed . | . . . Reprogrammed . | . . . Reused . | . . . Traps Extracted . | . . . Installed . | . . . Triggered . | . . . Machines | -11 -10 -9 ---------- Run | Yrd Mat Mat Machines Disabled 4 | . 2 2 Max in Single Turn 1 | . 1 1 Machines Repaired . | . . . Machines Dismantled . | . . . Machines Sabotaged . | . . . Overloaded Fab Kills . | . . . Hacking | -11 -10 -9 --------- Run | Yrd Mat Mat Machines Accessed 10 | . 9 1 Terminals 7 | . 6 1 Fabricators . | . . . Repair Stations 1 | . 1 . Recycling Units 2 | . 2 . Scanalyzers . | . . . Garrison Access . | . . . Total Hacks 28 | . 25 3 Successful 12 | . 10 2 Failed 16 | . 15 1 Catastrophic 3 | . 3 . Database Lockouts . | . . . Manual . | . . . Terminals 18 | . 15 3 Fabricators . | . . . Repair Stations 2 | . 2 . Recycling Units 8 | . 8 . Scanalyzers . | . . . Garrison Access . | . . . Terminal Hacks 7 | . 5 2 Record 1 | . 1 . Alert Level 1 | . 1 . Unreport Threat 2 | . 1 1 Hauler Manifests 1 | . 1 . Zone Layout 2 | . 1 1 Fabricator Hacks . | . . . Repair Station Hacks 1 | . 1 . Scan Component 1 | . 1 . Recycling Unit Hacks 4 | . 4 . Report Inventory 1 | . 1 . Retrieve Matter 1 | . 1 . Retrieve Components 2 | . 2 . Scanalyzer . | . . . Garrison Access Hacks . | . . . Unauthorized Hacks . | . . . Terminals . | . . . Fabricators . | . . . Repair Stations . | . . . Recycling Units . | . . . Scanalyzers . | . . . Garrison Access . | . . . Data Cores Recovered 1 | . 1 . Used . | . . . Hacking Detections 10 | . 9 1 Full Trace Events 2 | . 1 1 Feedback Events . | . . . Feedback Blocked . | . . . Robot Schematics Acquired . | . . . Robots Built . | . . . Authchips . | . . . Time . | . . . Total Robot Build Rating . | . . . Part Schematics Acquired . | . . . Parts Built . | . . . Authchips . | . . . Time . | . . . Total Part Build Rating . | . . . Parts Repaired . | . . . Time . | . . . Parts Recycled . | . . . Recycled Matter . | . . . Retrieved Matter . | . . . Retrieved Components 7 | . 7 . Parts Scanalyzed . | . . . Part Schematics Acquired . | . . . Parts Damaged . | . . . Bothacking | -11 -10 -9 ------------ Run | Yrd Mat Mat Used RIF Installer . | . . . Robots Hacked . | . . . Non-combat . | . . . Combat . | . . . Robot Hacks Applied . | . . . Relay Couplers Released . | . . . Fabnet Peak Effective % . | . . . Robots Rewired . | . . . Allies Hacked . | . . . Hacks Repelled . | . . . Allies | -11 -10 -9 -------- Run | Yrd Mat Mat Total Allies . | . . . Largest Group . | . . . Highest-Rated Group . | . . . Highest-Rated Ally . | . . . Total Orders . | . . . Ally Attacks . | . . . Total Damage . | . . . Kills . | . . . Allies Corrupted . | . . . Allies Melted . | . . . Intel | -11 -10 -9 ------- Run | Yrd Mat Mat Robot Analysis Total . | . . . Derelict Logs Recovered . | . . . Drone Launches . | . . . Drone Recoveries . | . . . Exploration | -11 -10 -9 ------------- Run | Yrd Mat Mat Turns Passed 1848 | 181 1189 478 Spaces Moved 1089 | 95 850 144 Core 34 | 11 6 17 Treads . | . . . Legs 213 | 84 115 14 Wheels 842 | . 729 113 Hover . | . . . Flight . | . . . Fastest Speed 50 | 50 80 105 Average Speed 125 | 115 110 224 Slowest Speed 900 | 120 700 900 Overloaded Moves . | . . . Propulsion Burnouts . | . . . Robots Hopped . | . . . Cave-ins Triggered . | . . . Exploration Rate (%) 41 | 6 99 19 Regions Visited 2 Branch Regions . Pre-discovered Areas . | . . . Known Exits Taken 1 | . 1 . Unknown Exits Taken 1 | 1 . . Scrap Searched . | . . . Spaces Dug . | . . . Terrain Destroyed 88 | 4 35 49 Melee . | . . . Projectile . | . . . AOE 88 | 4 35 49 Terrain Rammed . | . . . Walls Destroyed . | . . . Machines Disabled . | . . . Actions | -11 -10 -9 --------- Run | Yrd Mat Mat Total 1318 | 131 977 210 Wait . | . . . Move 1087 | 94 849 144 Hop . | . . . Pick Up 47 | 12 27 8 Fast Attach 1 | . 1 . Attach 26 | 7 12 7 Detach . | . . . Swap 12 | . 8 4 Drop 11 | . 11 . Fire 134 | 18 69 47 Melee . | . . . Ram . | . . . Kick . | . . . Crush . | . . . Escape Stasis . | . . . Rewire . | . . . Trap . | . . . Miscellaneous . | . . . Route ------- -11/Scrapyard -10/Materials (discovered 6 exits: *Mat x3 / *Min x2 / [*Sub]) -9/Materials History --------- Turn | Location | Event 23 | -11/Scrapyard | Discovered new exit (range 15) 182 | -11/Scrapyard | Entered Materials 316 | -10/Materials | Build established: Mutant 326 | -10/Materials | Discovered new exit (range 10) 444 | -10/Materials | Identified exit to Mines 514 | -10/Materials | Discovered new exit (range 4) 537 | -10/Materials | Identified exit to Materials 892 | -10/Materials | Discovered exit to Materials (range 3) 1051 | -10/Materials | Discovered new exit (range 11) 1193 | -10/Materials | Discovered exit to Materials (range 8) 1269 | -10/Materials | Discovered exit to Mines (range 7) 1371 | -10/Materials | Entered another Materials area 1371 | -9/Materials | Evolved 2 slots: Propulsion x1, Utility x1 1847 | -9/Materials | Core integrity fell below 50% 1849 | -9/Materials | Self-destructed Last Messages --------------- 01763_ Acquired 8 matter. 01765_ Acquired 1 matter. 01804_ O-16 Technician: "IFF HANDSHAKE FAILED. SECURING TERMINAL." 01806_ O-16 Technician uses terminal to summon reinforcements. 01806_ ALERT: Hostiles spotted, dispatching reinforcements to Terminal M001. 01806_ O-16 Technician locks terminal. 01807_ O-16 Technician destroyed. 01817_ Acquired Plasma Cutter. 01828_ W-16 Scout sends out distress signal. 01834_ G-34 Mercenary Ion Engine severed. 01837_ Ion Engine destroyed. 01838_ Mining Laser destroyed. 01841_ Critical hit (Burn: +37). 01844_ Wheel destroyed. 01845_ Terminal disabled. 01847_ Grenade Launcher destroyed. 01848_ Plasma Cutter destroyed. Map ----- +----------------------------------------------------+ | ???????? ## ######### """ # | | ???????? ##+#########^ """ + | | ???????? # ## """ # | | ????????## ## " " ### | | ???????? # ## "R"^ | ### | | ???????? # """ """ ## """ ### | | ???????? + """ """ ##############+ | | ???????? # """ """ ############## | | ???? ? # ##????????????? | | ????## ?## ##????????????? | | ????## ?#####+#######????????????? | | ????##Y?##### #######????????????? | | ??#### ##??## ##?????????????????? | | ??#### ###### ### ???????????????? | | ??## ##### ### ???????????????? | | ??## # ???????????????? | | ?### + ???????????????? | | ?### == #"???????????????? | | ?## == #"???????????????? | | ?## #"???????????????? | | ?## # ????????? | | ?## """ #########????????? | | ?## T =| """ a ##????????? | | ?###"/ | """ ##????????? | | ??## YYw ##????????? | | ??## g@ ???????? | | ??## g* #"T"######### ??????????? | | ??## #"""######### ??????????? | | ??## #######??????????????????? | | ??## #######??????????????????? | | ??### ?????????????????????????? | | ??### ?????????????????????????? | | ???## ?????????????????????????? | | ??## ?????????????????????????? | | ??## ??????????????????????????? | | ??## ??????????????????????????? | | ??## ??????????????????????????? | | ??## ??????????????????????????? | | ?????????????????????????????????? | | ?????????????????????????????????? | | ?????????????????????????????????? | | ?????????????????????????????????? | | ?????????????????????????????????? | | ?????????????????????????????????? | | ?????????????????????????????????? | | ?????????????????????????????????? | | ?????????????????????????????????? | | ?????????????????????????????????? | | ?????????????????????????????????? | | ?????????????????????????????????? | +----------------------------------------------------+ Best States ------------- Heat Dissipation 28 Energy Generation 10 Energy Capacity 250 Matter Stores 300 Matter Capacity 300 Sight Range 16 Terrain Scan Density 10 Evasion (%) 55 Item Schematics ----------------- None Robot Schematics ------------------ None Fabricated ------------ Nothing Alien Tech Used ----------------- None Achievements -------------- None Challenges ------------ None Game ------ Seed SubatomicThunderMultirail Manual? 0 Play Time 00:24:44 Cumulative 4.2 hours Start 2024.04.02 @ 15:32:09 End 2024.04.02 @ 16:04:20 Sessions 1 Manual Loads 0 Difficulty Rogue Special Mode None Game No. 7 Rogue 7 Adventurer 0 Explorer 0 Win Type - Total 0 Types 0/0/0/0/0/0/0/0/0 Lore% 6 Gallery% 7 Achievement% 8 Wizard Run 0 Options --------- Layout 1 ASCII 0 Keyboard 0 Movement Mouse Keybinds 0 Fullscreen 1 Font 16/SmallcapsGlow Map View 55x38 Zoom Use 0% Tactical HUD 1 Map Filters NONE Filters NONE Steam 1 RUN: adfab4a6-cb3f-4f1e-80b1-c4accc6e4b20